bitfinex-derivatives/quotes_SOLF0:USTF0_20250310
["timestamp","ask_amount","ask_price","bid_price","bid_amount"]
[1741618239121,60.02,120.81,120.71,57.00423942]
[1741618239319,57.00423942,120.8,120.69,338.44603942]
[1741618239829,0.05995579,120.77,120.75,0.05245545]
[1741618240022,8.2815,120.76,120.75,0.05245545]
[1741618240328,0.06254867,120.77,120.74,0.05830055]
[1741618240523,8.2827,120.75,120.74,0.05830055]
[1741618240737,57.00423942,120.78,120.69,8.1818]
[1741618240919,0.06037273,120.76,120.73,0.05454902]
[1741618241221,57.00423942,120.74,120.68,62.0]
[1741618241422,117.02423942,120.74,120.64,64.2147]
[1741618241615,8.2867,120.69,120.65,8.2888]
[1741618241818,57.00423942,120.7,120.64,4.1947]
[1741618242015,57.00423942,120.7,120.61,4.0249]
[1741618242423,0.0523967,120.67,120.64,0.05751967]
[1741618242614,8.2933,120.59,120.57,4.1947]
[1741618242815,60.02,120.62,120.53,90.34286055]
[1741618243021,57.00423942,120.6,120.53,90.34286055]
[1741618243826,0.05911379,120.58,120.55,0.06191739]
[1741618244532,8.2952,120.56,120.55,0.06191739]
[1741618244724,57.06335321,120.58,120.55,0.06191739]
[1741618245129,0.05911379,120.58,120.55,0.06191739]
[1741618245330,8.2952,120.56,120.55,0.06191739]
[1741618245537,57.06335321,120.58,120.53,90.34286055]
[1741618245823,57.06335321,120.58,120.5,1.65975103]
[1741618246024,57.00423942,120.56,120.5,1.65975103]
[1741618246419,57.00423942,120.56,120.36,373.00423942]
[1741618246420,57.00423942,120.54,120.37,273.42]
[1741618246620,192.0,120.56,120.44,61.10283942]
[1741618246621,57.00423942,120.56,120.44,61.10283942]
[1741618246932,0.05819076,120.54,120.52,0.05835995]
[1741618247126,252.97403942,120.6,120.48,57.00423942]
[1741618247324,249.00423942,120.64,120.52,57.06778369]
[1741618247525,61.31213942,120.64,120.53,64.1386]
[1741618248028,8.2917,120.62,120.54,8.2965]
[1741618248239,61.31213942,120.64,120.53,64.1386]
[1741618248535,15.0,120.66,120.56,57.00423942]
[1741618248722,72.00423942,120.66,120.54,127.48733942]
[1741618248918,72.00423942,120.66,120.55,1.49939284]
[1741618249336,57.00423942,120.64,120.55,1.49939284]
[1741618249629,0.05814682,120.62,120.59,0.05991621]
[1741618250227,0.05814682,120.62,120.61,8.2918]
[1741618250533,0.05814682,120.62,120.59,0.05991621]
[1741618250939,15.0,120.66,120.59,0.05991621]
[1741618251235,15.0,120.66,120.6,57.00423942]
[1741618251432,15.0,120.66,120.6,8.2923]
[1741618251630,15.0,120.66,120.58,57.00423942]
[1741618251827,15.0,120.66,120.6,57.00423942]
[1741618252023,15.0,120.66,120.65,8.2891]
[1741618252224,15.0,120.66,120.62,57.06134846]
[1741618252430,0.11390153,120.66,120.62,57.06134846]
[1741618252623,121.20763942,120.74,120.62,0.05710904]
[1741618252829,57.00423942,120.72,120.62,0.05710904]
[1741618253122,57.00423942,120.72,120.6,57.00423942]
[1741618253331,57.00423942,120.68,120.58,57.00423942]
[1741618253531,0.05892924,120.67,120.56,57.00423942]
[1741618253734,57.00423942,120.66,120.57,1.49902951]
[1741618253929,57.00423942,120.66,120.55,1.49930612]
[1741618254131,57.00423942,120.66,120.54,530.96733942]
[1741618254730,57.00423942,120.66,120.54,338.96733942]
[1741618254940,0.05880217,120.61,120.59,0.05390111]
[1741618255239,57.00423942,120.64,120.59,0.05390111]
[1741618255436,57.00423942,120.66,120.59,0.05390111]
[1741618255638,0.05596312,120.61,120.59,0.05390111]
[1741618255835,57.00423942,120.66,120.59,0.05390111]
[1741618256040,0.05243014,120.61,120.59,0.05390111]
[1741618256232,12.2838,120.67,120.59,0.05390111]
[1741618256427,12.2838,120.67,120.56,57.00423942]
[1741618256631,12.2838,120.67,120.62,0.05241524]
[1741618257135,12.2838,120.67,120.58,117.06423942]
[1741618257336,117.06423942,120.72,120.6,57.00423942]
[1741618257636,4.0086,120.71,120.6,57.00423942]
[1741618257833,0.06135611,120.67,120.65,0.0542997]
[1741618259931,4.1265,120.75,120.65,57.05853912]
[1741618260238,11.11336191,120.83,120.71,57.00423942]
[1741618260445,12.2244,120.82,120.73,57.00423942]
[1741618260739,11.11336191,120.83,120.75,57.00423942]
[1741618260945,11.11336191,120.83,120.74,4.0718]
[1741618261548,0.05348866,120.8,120.78,0.05586723]
[1741618263042,0.05348866,120.8,120.78,62.05586723]
[1741618263342,192.0,120.94,120.79,57.00423942]
[1741618263644,4.3752,120.93,120.83,57.00423942]
[1741618264050,8.2707,120.92,120.85,57.00423942]
[1741618264241,4.3752,120.97,120.87,57.00423942]
[1741618264641,0.05736964,120.9,120.87,57.05956562]
[1741618264832,57.00423942,120.96,120.87,0.0553262]
[1741618265049,57.00423942,120.91,120.81,61.24943942]
[1741618265343,8.2742,120.87,120.81,61.24943942]
[1741618265541,57.00423942,120.89,120.81,4.2452]
[1741618265745,57.00423942,120.87,120.77,273.36]
[1741618265947,57.00423942,120.89,120.76,63.9854]
[1741618265948,57.00423942,120.85,120.76,63.9854]
[1741618266144,117.02423942,120.85,120.76,3.9654]
[1741618266345,57.00423942,120.83,120.71,57.00423942]
[1741618266545,57.00423942,120.81,120.72,3.9654]
[1741618266748,57.00423942,120.79,120.69,60.02]
[1741618267137,57.00423942,120.79,120.7,62.0]
[1741618267643,0.06190259,120.75,120.73,0.05663903]
[1741618267845,8.2829,120.74,120.73,0.05663903]
[1741618268444,0.06190259,120.75,120.73,0.05663903]
[1741618269046,8.2829,120.74,120.73,0.05663903]
[1741618269246,0.06190259,120.75,120.73,0.05663903]
[1741618270143,8.2829,120.74,120.73,0.05663903]
[1741618271447,0.06190259,120.75,120.73,0.05663903]
[1741618271647,4.3196,120.82,120.73,0.05663903]
[1741618271946,4.3196,120.82,120.74,60.0]
[1741618272145,4.3196,120.82,120.74,117.00423942]
[1741618272347,4.3196,120.82,120.74,60.0]
[1741618272545,57.00423942,120.81,120.7,57.00423942]
[1741618272749,0.04770835,120.79,120.77,0.05910608]
[1741618273040,0.04770835,120.79,120.72,57.00423942]
[1741618273250,0.04770835,120.79,120.77,0.05846136]
[1741618273434,4.3196,120.82,120.73,59.98]
[1741618273635,0.04770835,120.77,120.73,59.98]
[1741618273839,0.04770835,120.77,120.76,0.05852449]
[1741618274144,8.32850835,120.77,120.76,0.05852449]
[1741618275049,8.32850835,120.77,120.76,2.449e-05]
[1741618275644,2.52770835,120.77,120.65,57.00423942]
[1741618275949,57.00423942,120.75,120.65,59.98]
[1741618276145,57.00423942,120.75,120.64,4.1466]
[1741618276446,57.00423942,120.73,120.64,59.98]
[1741618276747,8.2871,120.68,120.64,68.2692]
[1741618276951,0.05276987,120.7,120.67,0.06185905]
[1741618277149,57.00423942,120.73,120.67,0.06185905]
[1741618277349,0.05516573,120.7,120.67,0.06185905]
[1741618277554,57.00423942,120.69,120.59,68.2135]
[1741618277846,57.00423942,120.66,120.56,57.00423942]
[1741618278039,251.98,120.71,120.56,57.00423942]
[1741618278040,61.17383942,120.68,120.57,59.98]
[1741618278245,61.17383942,120.68,120.58,119.00423942]
[1741618278443,61.17383942,120.68,120.58,62.0]
[1741618278645,57.00423942,120.64,120.57,59.98]
[1741618278844,57.06676807,120.64,120.57,59.98]
[1741618279149,0.06252865,120.64,120.57,59.98]
[1741618279358,0.06252865,120.64,120.54,4.0077]
[1741618279359,57.00423942,120.63,120.54,4.0077]
[1741618279552,57.00423942,120.63,120.52,57.00423942]
[1741618279755,0.06252865,120.64,120.49,196.3286]
[1741618279756,60.0,120.65,120.54,57.00423942]
[1741618279955,60.0,120.65,120.53,60.68]
[1741618280255,0.05891766,120.59,120.49,60.9]
[1741618280452,4.08791766,120.59,120.49,60.9]
[1741618280650,57.00423942,120.58,120.49,60.9]
[1741618280952,57.00423942,120.56,120.44,61.02603942]
[1741618281348,57.00423942,120.54,120.44,61.02603942]
[1741618281551,57.00423942,120.54,120.44,4.0218]
[1741618281756,0.05384007,120.51,120.49,0.05867452]
[1741618282149,8.1096,120.59,120.5,57.00423942]
[1741618282849,61.02,120.63,120.52,57.00423942]
[1741618283058,65.3859,120.63,120.53,61.4]
[1741618283256,57.00423942,120.62,120.53,61.4]
[1741618283449,0.06254857,120.59,120.56,0.0547487]
[1741618283843,57.00423942,120.62,120.5,58.50440065]
[1741618284050,0.05472213,120.59,120.56,0.05273591]
[1741618284945,8.3234,120.65,120.56,57.05697533]
[1741618285147,4.3659,120.68,120.58,57.00423942]
[1741618285455,61.37013942,120.68,120.57,62.0]
[1741618285861,4.3659,120.68,120.58,57.00423942]
[1741618286048,4.3659,120.68,120.59,61.44]
[1741618286249,0.05221299,120.64,120.61,0.06217997]
[1741618287853,0.05221299,120.64,120.61,8.35387997]
[1741618288054,0.05221299,120.64,120.61,0.06217997]
[1741618289555,8.2911,120.62,120.61,0.06217997]
[1741618290663,0.05221299,120.64,120.61,0.06217997]
[1741618291155,8.2908,120.63,120.61,0.06217997]
[1741618291463,0.05221299,120.64,120.61,0.06217997]
[1741618292359,0.05221299,120.64,120.62,70.2907]
[1741618292562,0.05221299,120.64,120.61,0.06217997]
[1741618293356,0.05221299,120.64,120.63,8.2904]
[1741618293756,8.539,120.7,120.61,117.92641939]
[1741618293951,8.539,120.7,120.61,60.92217997]
[1741618294153,8.539,120.7,120.57,117.82423942]
[1741618294154,57.00423942,120.68,120.57,117.82423942]
[1741618294356,57.00423942,120.68,120.58,1.49919107]
[1741618294564,57.00423942,120.68,120.58,62.37919107]
[1741618294755,57.00423942,120.68,120.58,60.88]
[1741618294955,0.06254838,120.64,120.62,0.05389578]
[1741618296066,8.35244838,120.64,120.62,0.05389578]
[1741618296366,0.06254838,120.64,120.62,0.05389578]
[1741618299267,0.06254838,120.64,120.57,60.66]
[1741618299565,0.06254838,120.64,120.59,57.00423942]
[1741618299968,0.06254838,120.64,120.6,8.2921]
[1741618300157,0.06254838,120.64,120.59,57.00423942]
[1741618300358,0.06254838,120.64,120.61,57.00423942]
[1741618300554,4.2056,120.7,120.63,57.00423942]
[1741618300855,4.1397,120.73,120.63,57.00423942]
[1741618301065,4.1397,120.73,120.64,62.0]
[1741618301263,4.1397,120.73,120.65,57.00423942]
[1741618301454,8.2877,120.67,120.64,70.2895]
[1741618301658,8.2877,120.67,120.63,57.00423942]
[1741618301659,57.00423942,120.7,120.62,60.7]
[1741618301861,57.05933801,120.7,120.68,1.52e-06]
[1741618302055,57.00423942,120.7,120.62,68.9907]
[1741618302255,117.72423942,120.72,120.61,57.00423942]
[1741618302669,4.1397,120.73,120.65,57.00423942]
[1741618302854,8.4959,120.75,120.67,57.00423942]
[1741618303058,8.2817,120.76,120.72,8.2839]
[1741618303254,0.05409586,120.72,120.69,57.00423942]
[1741618303466,4.2114,120.78,120.73,0.05260696]
[1741618303754,4.2114,120.78,120.69,57.00423942]
[1741618303960,61.21563942,120.78,120.68,64.5122]
[1741618304157,57.00423942,120.72,120.64,60.48]
[1741618304463,57.00423942,120.7,120.6,60.48]
[1741618304669,57.00423942,120.68,120.61,1.4984084]
[1741618304861,57.00423942,120.68,120.59,4.3516]
[1741618305172,8.2905,120.63,120.59,4.3516]
[1741618305369,57.00423942,120.66,120.55,121.45493942]
[1741618305669,57.00423942,120.66,120.56,1.49928284]
[1741618305870,12.0466,120.71,120.59,57.00423942]
[1741618306057,0.05854686,120.62,120.61,57.00423942]
[1741618306262,8.2876,120.68,120.61,57.00423942]
[1741618306560,12.0466,120.71,120.63,57.00423942]
[1741618307067,12.3198,120.71,120.63,57.00423942]
[1741618307268,60.28,120.73,120.61,117.26423942]
[1741618307472,60.28,120.73,120.63,57.00423942]
[1741618307668,0.06110104,120.68,120.66,0.05278312]
[1741618307971,4.0547,120.74,120.66,62.05278312]
[1741618308171,61.05893942,120.74,120.66,62.05278312]
[1741618308464,0.0533124,120.68,120.61,117.26423942]
[1741618308671,61.05893942,120.74,120.69,0.06238262]
[1741618308970,57.00423942,120.7,120.59,390.56423942]
[1741618309374,57.00423942,120.72,120.6,1.49891083]
[1741618309973,117.04423942,120.72,120.61,8.2916]
[1741618310173,0.05915306,120.67,120.65,0.06152874]
[1741618310675,0.05915306,120.67,120.56,60.04]
[1741618310676,57.00423942,120.66,120.56,60.04]
[1741618310972,61.24863942,120.66,120.56,60.04]
[1741618311164,8.293,120.6,120.56,68.3352]
[1741618311475,65.26743942,120.66,120.57,62.0]
[1741618311771,0.05402881,120.63,120.6,0.06075329]
[1741618312561,8.2918,120.61,120.6,0.06075329]
[1741618312767,0.05402881,120.63,120.6,0.06075329]
[1741618313663,0.05402881,120.63,120.54,345.766]
[1741618313971,57.00423942,120.64,120.54,345.766]
[1741618314167,57.00423942,120.62,120.5,133.28191652]
[1741618314475,57.00423942,120.6,120.51,60.04]
[1741618314662,117.04423942,120.62,120.51,60.04]
[1741618314871,0.05624677,120.57,120.54,0.05919952]
[1741618315175,0.05624677,120.57,120.51,60.04]
[1741618315473,0.05624677,120.57,120.54,0.06305418]
[1741618316876,0.05624677,120.57,120.54,8.35935418]
[1741618317072,0.05624677,120.57,120.54,0.06305418]
[1741618317274,4.2943,120.64,120.55,57.00423942]
[1741618317477,192.0,120.68,120.58,57.00423942]
[1741618317770,8.4793,120.71,120.62,57.00423942]
[1741618317968,8.4793,120.71,120.66,8.2883]
[1741618318175,15.21426191,120.73,120.64,117.06423942]
[1741618318380,0.0613377,120.7,120.67,0.05597112]
[1741618318571,0.0613377,120.7,120.68,57.00423942]
[1741618318875,0.0613377,120.7,120.69,60.06]
[1741618319074,11.11336191,120.73,120.69,60.06]
[1741618319268,11.11336191,120.73,120.72,57.00423942]
[1741618319469,11.11336191,120.73,120.72,62.0]
[1741618319869,122.24698104,120.74,120.72,119.00423942]
[1741618319870,120.18754295,120.74,120.72,119.00423942]
[1741618320269,107.8864268,120.74,120.72,119.06129442]
[1741618320469,107.8864268,120.74,120.72,62.057055]
[1741618320671,107.8864268,120.74,120.72,119.06129442]
[1741618320971,129.76926718,120.75,120.74,8.2829]
[1741618321166,215.37736086,120.76,120.72,119.06129442]
[1741618321167,117.06423942,120.81,120.72,62.057055]
[1741618321372,57.00423942,120.77,120.72,62.057055]
[1741618321565,57.00423942,120.77,120.67,60.06]
[1741618321566,57.00423942,120.75,120.67,60.06]
[1741618321764,64.2754,120.76,120.67,60.06]
[1741618321966,57.00423942,120.74,120.62,57.00423942]
[1741618322170,57.00423942,120.7,120.61,333.5]
[1741618322369,200.1860953,120.73,120.58,147.34709997]
[1741618322370,57.00423942,120.68,120.58,147.34709997]
[1741618322567,60.04,120.71,120.62,57.00423942]
[1741618322778,200.1325,120.73,120.64,57.00423942]
[1741618323078,8.2859,120.7,120.64,65.29383942]
[1741618323378,57.00423942,120.67,120.58,90.34286055]
[1741618323580,57.00423942,120.65,120.58,90.34286055]
[1741618323766,8.1207,120.64,120.58,90.34286055]
[1741618323972,57.00423942,120.63,120.58,90.34286055]
[1741618324475,8.1207,120.64,120.58,90.34286055]
[1741618324673,57.00423942,120.63,120.58,90.34286055]
[1741618324885,0.06308031,120.62,120.59,0.05754051]
[1741618325071,57.00423942,120.61,120.57,129.22641652]
[1741618325470,4.16428031,120.62,120.57,129.22641652]
[1741618325971,57.00423942,120.61,120.57,129.22641652]
[1741618326173,4.16428031,120.62,120.58,0.05832486]
[1741618326575,57.00423942,120.61,120.48,229.27582116]
[1741618326877,8.2925,120.6,120.54,8.296]
[1741618327072,4.1012,120.62,120.52,57.00423942]
[1741618327382,4.1012,120.62,120.56,8.2947]
[1741618327585,4.0912,120.64,120.57,62.0]
[1741618327883,0.05439737,120.6,120.58,0.05299057]
[1741618328880,60.04,120.68,120.58,57.05722999]
[1741618329072,60.04,120.68,120.58,0.05299057]
[1741618329270,60.04,120.68,120.57,62.0]
[1741618329485,8.2881,120.67,120.62,8.2909]
[1741618329685,117.04423942,120.71,120.58,125.25873942]
[1741618330184,0.06369761,120.66,120.63,0.05279473]
[1741618330579,0.06369761,120.66,120.6,57.00423942]
[1741618330778,0.06369761,120.66,120.63,0.05467173]
[1741618331778,8.2897,120.64,120.63,0.05467173]
[1741618332583,8.2936,120.59,120.54,330.52423942]
[1741618332785,57.00423942,120.63,120.55,1.49943444]
[1741618332985,57.00423942,120.63,120.54,273.52]
[1741618333179,8.2929,120.6,120.54,273.52]
[1741618333382,309.04423942,120.65,120.57,8.2944]
[1741618333691,309.04423942,120.65,120.54,273.52]
[1741618333994,0.05403046,120.62,120.6,0.05443601]
[1741618334191,60.04,120.69,120.6,57.00423942]
[1741618334485,192.0,120.71,120.62,57.00423942]
[1741618334687,249.00423942,120.71,120.59,64.2467]
[1741618334895,249.00423942,120.71,120.59,72.5398]
[1741618335089,57.00423942,120.69,120.59,64.2467]
[1741618335390,8.2897,120.64,120.63,0.05582024]
[1741618335590,57.00423942,120.65,120.55,62.0]
[1741618335794,57.00423942,120.6,120.5,4.0594]
[1741618335995,252.04,120.64,120.5,4.0594]
[1741618335996,57.00423942,120.58,120.5,4.0594]
[1741618336194,60.04,120.58,120.51,27.45067]
[1741618336395,8.2946,120.57,120.51,27.45067]
[1741618336584,60.04,120.58,120.51,35.74897]
[1741618336784,0.05974623,120.55,120.53,0.05257513]
[1741618338289,61.15083942,120.62,120.53,0.05257513]
[1741618338491,57.00423942,120.6,120.53,0.05257513]
[1741618338691,57.00423942,120.6,120.52,60.02]
[1741618338898,61.15083942,120.62,120.53,62.0]
[1741618339092,8.295,120.57,120.53,62.0]
[1741618339402,0.05669556,120.56,120.54,0.05966849]
[1741618339606,8.2959,120.55,120.54,0.05966849]
[1741618339894,0.05669556,120.56,120.54,0.05966849]
[1741618340798,4.1466,120.62,120.55,117.04423942]
[1741618340997,192.0,120.7,120.59,57.00423942]
[1741618340998,249.00423942,120.7,120.59,57.00423942]
[1741618341194,4.2488,120.69,120.6,60.04]
[1741618341887,57.06302515,120.66,120.56,8.5083]
[1741618342290,57.00423942,120.66,120.57,62.0]
[1741618342697,309.04423942,120.68,120.57,119.00423942]
[1741618342996,192.0,120.68,120.59,57.00423942]
[1741618343194,3.9998,120.7,120.63,57.00423942]
[1741618343398,334.83303942,120.74,120.61,57.05968663]
[1741618344003,334.83303942,120.74,120.62,1.4987645]
[1741618344200,57.00423942,120.72,120.62,1.4987645]
[1741618344387,57.00423942,120.7,120.6,60.04]
[1741618344896,57.00423942,120.72,120.61,57.00423942]
[1741618345092,0.06377017,120.66,120.64,0.05601508]
[1741618345297,8.287,120.68,120.64,0.05601508]
[1741618345597,192.0,120.73,120.61,117.02423942]
[1741618345821,61.25303942,120.74,120.62,1.49873017]
[1741618346098,4.2488,120.74,120.64,57.00423942]
[1741618346288,8.2874,120.68,120.63,65.9786]
[1741618346492,57.00423942,120.72,120.63,65.9786]
[1741618346687,0.06264944,120.7,120.68,0.06242818]
[1741618346886,57.06688886,120.7,120.59,3.9786]
[1741618347085,57.00423942,120.67,120.59,3.9786]
[1741618347291,0.06264944,120.7,120.59,3.9786]
[1741618347292,8.2893,120.65,120.59,12.2713]
[1741618347495,57.00423942,120.69,120.59,3.9786]
[1741618347696,57.00423942,120.65,120.58,17.86574279]
[1741618347899,8.293,120.6,120.58,17.86574279]
[1741618348089,0.05509975,120.63,120.58,17.86574279]
[1741618348291,57.00423942,120.65,120.58,17.91898322]
[1741618348497,3.9567,120.66,120.58,17.91898322]
[1741618348701,0.06180397,120.62,120.58,17.91898322]
[1741618348901,8.2932,120.59,120.58,17.86574279]
[1741618349096,0.06180397,120.62,120.59,0.05640121]
[1741618350094,8.2925,120.6,120.59,0.05640121]
[1741618350699,8.2932,120.59,120.58,17.86574279]
[1741618350903,57.00423942,120.61,120.52,60.0]
[1741618351303,57.00423942,120.59,120.49,8.5248]
[1741618351496,57.00423942,120.57,120.49,8.3]
[1741618351696,57.00423942,120.59,120.47,148.29414897]
[1741618351997,0.05519352,120.54,120.52,0.06311661]
[1741618352497,8.298,120.53,120.52,0.06311661]
[1741618352695,0.05941874,120.54,120.52,0.06311661]
[1741618352901,8.2973,120.53,120.52,0.06311661]
[1741618353403,0.05941874,120.54,120.52,0.06311661]
[1741618353996,57.00423942,120.63,120.53,57.00423942]
[1741618354305,4.1523,120.63,120.55,57.00423942]
[1741618354504,4.1523,120.63,120.56,60.0]
[1741618354801,4.1352,120.66,120.56,60.0]
[1741618355110,60.0,120.68,120.56,60.0]
[1741618355111,4.1523,120.69,120.59,57.00423942]
[1741618355399,4.1523,120.69,120.57,61.28683942]
[1741618355603,57.00423942,120.68,120.57,61.28683942]
[1741618355808,0.06079744,120.65,120.63,0.06379593]
[1741618355997,0.06079744,120.65,120.56,60.0]
[1741618356198,0.06079744,120.65,120.55,57.00423942]
[1741618356408,57.00423942,120.64,120.54,60.02]
[1741618356607,117.02423942,120.66,120.55,62.0]
[1741618356807,117.02423942,120.66,120.55,119.00423942]
[1741618357304,0.05576108,120.62,120.59,0.05307042]
[1741618357502,57.0600005,120.62,120.59,0.05307042]
[1741618357702,8.2925,120.6,120.59,0.05307042]
[1741618358204,0.05576108,120.62,120.59,0.05307042]
[1741618358395,57.0600005,120.62,120.51,8.4512]
[1741618358595,4.3639,120.61,120.51,8.4512]
[1741618358899,57.00423942,120.6,120.51,8.4512]
[1741618359102,57.00423942,120.58,120.47,57.00423942]
[1741618359306,57.00423942,120.56,120.44,8.3996]
[1741618359499,57.00423942,120.54,120.44,68.3996]
[1741618359701,8.2998,120.5,120.49,0.06163531]
[1741618359897,0.06336964,120.51,120.49,0.06163531]
[1741618360109,60.0,120.56,120.49,0.06163531]
[1741618360302,0.05939939,120.51,120.49,0.06163531]
[1741618360505,60.0,120.56,120.49,0.06163531]
[1741618360704,8.2987,120.51,120.49,0.06163531]
[1741618360905,0.05797978,120.51,120.49,0.06163531]
[1741618361307,0.05797978,120.51,120.42,91.28990955]
[1741618361507,0.05797978,120.51,120.42,148.29414897]
[1741618361711,4.3589,120.53,120.42,57.00423942]
[1741618361905,4.3589,120.53,120.44,57.00423942]
[1741618362309,8.3009,120.48,120.44,57.00423942]
[1741618362516,8.3009,120.48,120.47,0.06358717]
[1741618362709,4.3589,120.53,120.47,0.06358717]
[1741618363014,0.05810432,120.49,120.47,0.06358717]
[1741618363614,8.35840432,120.49,120.47,0.06358717]
[1741618363810,0.05810432,120.49,120.47,0.06358717]
[1741618364415,249.00423942,120.58,120.47,0.06358717]
[1741618364606,253.37693942,120.58,120.48,57.00423942]
[1741618365006,253.37693942,120.58,120.46,117.02423942]
[1741618365515,0.05450514,120.53,120.51,0.06003338]
[1741618365715,8.298,120.52,120.51,0.06003338]
[1741618366319,8.3011,120.48,120.44,57.00423942]
[1741618366917,8.3001,120.49,120.44,57.00423942]
[1741618367120,60.0,120.55,120.46,57.00423942]
[1741618367424,0.06219178,120.52,120.49,0.05929156]
[1741618367912,8.36049178,120.52,120.49,0.05929156]
[1741618368105,0.06219178,120.52,120.49,0.05929156]
[1741618368716,192.0,120.65,120.5,57.00423942]
[1741618368923,1.65782493,120.64,120.54,57.00423942]
[1741618369218,1.65782493,120.64,120.55,60.0]
[1741618369518,1.65782493,120.64,120.51,4.1443]
[1741618369519,57.00423942,120.6,120.51,4.1443]
[1741618369710,57.00423942,120.62,120.51,4.1443]
[1741618369910,0.06278594,120.57,120.54,0.05567373]
[1741618370319,57.00423942,120.6,120.51,64.1443]
[1741618370519,0.0626544,120.57,120.54,0.05403817]
[1741618372718,57.00423942,120.56,120.47,68.3011]
[1741618373112,57.00423942,120.56,120.47,60.0]
[1741618373312,4.281,120.57,120.47,60.0]
[1741618373515,8.2973,120.53,120.49,8.2996]
[1741618373708,4.281,120.57,120.47,60.0]
[1741618373909,0.06187835,120.51,120.49,0.05298236]
[1741618374110,8.2994,120.5,120.49,0.05298236]
[1741618374714,8.36087835,120.51,120.49,0.05298236]
[1741618374913,0.06187835,120.51,120.49,0.05298236]
[1741618375319,8.36117835,120.51,120.49,0.05298236]
[1741618375520,0.06187835,120.51,120.49,0.05298236]
[1741618375831,8.36087835,120.51,120.49,0.05298236]
[1741618376123,0.06187835,120.51,120.49,0.05298236]
[1741618378021,8.2994,120.5,120.49,0.05298236]
[1741618380526,8.36117835,120.51,120.49,0.05298236]
[1741618381130,8.2994,120.5,120.49,0.05298236]
[1741618381328,0.06187835,120.51,120.49,0.05298236]
[1741618381529,8.2994,120.5,120.49,0.05298236]
[1741618381827,0.06187835,120.51,120.49,0.05298236]
[1741618382422,0.06187835,120.51,120.5,59.98]
[1741618382616,3.956,120.6,120.5,119.46423942]
[1741618382617,8.2942,120.58,120.5,119.46423942]
[1741618382829,8.2942,120.58,120.53,57.00423942]
[1741618383033,3.956,120.6,120.53,57.00423942]
[1741618383424,64.98893942,120.65,120.55,57.00423942]
[1741618383629,64.98893942,120.65,120.56,59.96]
[1741618383926,0.05983813,120.61,120.59,0.06151539]
[1741618384430,8.2925,120.6,120.59,0.06151539]
[1741618384833,0.05983813,120.61,120.59,0.06151539]
[1741618385323,8.2925,120.6,120.59,0.06151539]
[1741618386125,57.00423942,120.6,120.48,273.72]
[1741618386316,57.00423942,120.56,120.48,273.72]
[1741618386725,59.94,120.59,120.48,273.72]
[1741618386726,57.00423942,120.58,120.48,273.72]
[1741618386922,57.00423942,120.58,120.48,330.72423942]
[1741618387120,57.00423942,120.58,120.48,273.72]
[1741618387327,8.2977,120.53,120.48,273.72]
[1741618387524,0.05767517,120.54,120.52,0.06218037]
[1741618387725,0.05767517,120.54,120.48,330.72423942]
[1741618388129,0.05767517,120.54,120.52,0.05549908]
[1741618388335,0.05767517,120.54,120.45,4.1421]
[1741618388717,57.00423942,120.54,120.47,8.3011]
[1741618388923,57.00423942,120.56,120.45,59.94]
[1741618389120,57.00423942,120.54,120.46,62.0]
[1741618389424,57.00423942,120.56,120.46,62.0]
[1741618389630,0.05335589,120.51,120.49,0.06142346]
[1741618389931,57.00423942,120.56,120.49,0.06142346]
[1741618390134,0.05223942,120.51,120.49,0.06142346]
[1741618390325,0.05223942,120.51,120.46,62.0]
[1741618390526,0.05223942,120.51,120.49,0.0550208]
[1741618390845,57.00423942,120.56,120.44,116.92423942]
[1741618391031,0.06295128,120.51,120.49,0.05898866]
[1741618391530,0.05337585,120.51,120.49,0.05898866]
[1741618391832,0.05337585,120.51,120.49,59.97898866]
[1741618392429,4.335,120.57,120.51,8.2983]
[1741618392627,4.335,120.57,120.49,64.27098866]
[1741618392935,4.2368,120.6,120.52,57.00423942]
[1741618393337,4.2368,120.6,120.5,330.74423942]
[1741618393636,0.05481298,120.57,120.55,0.06140398]
[1741618393835,0.05481298,120.57,120.51,62.0]
[1741618394026,57.0590524,120.57,120.49,59.92]
[1741618394428,57.00423942,120.57,120.49,59.92]
[1741618395137,8.2987,120.51,120.49,59.92]
[1741618395342,0.05445952,120.54,120.52,0.06230583]
[1741618395635,0.05668831,120.54,120.52,8.2976]
[1741618395838,64.1568,120.6,120.52,0.05788589]
[1741618396038,8.2962,120.55,120.5,61.01103942]